Cogmind - Beta 11 @@@ ROGUE MODE // 2022.03.18 @ 18:01:41 Player: drchaos820 Result: Destroyed by H-55 Commando with Assault Rifle Performance ------------- Evolutions (0) 0 Regions Visited (3) 600 Robots Destroyed (33) 165 Value Destroyed (1372) 1372 Prototype IDs (1) 20 Alien Tech Used (0) 0 Bonus (300) 300 TOTAL SCORE: 2457 Bonus ------- Aligned with FarCom 300 Cogmind --------- Core Integrity 0/250 Matter 300/300 Energy 160/160 System Corruption 2% Temperature Cool (0) Movement Walking (330) Ox3 Location -10/Exiles Parts ------- > --- POWER (1) -------- Light Nuclear Core > --- PROPULSION (2) --- Carbon-fiber Leg > --- UTILITY (2) ------ High-capacity Storage Unit Sensor Array > --- WEAPON (2) ------- Light Cannon > --- INVENTORY (20) --- Aluminum Leg Medium Matter Pod (100) Targeting Computer XL Autogun Array Mining Laser Peak State ------------ > --- POWER ------------ Light Ion Engine > --- PROPULSION ------- Carbon-fiber Leg Carbon-fiber Leg > --- UTILITY ---------- Small Storage Unit Sensor Array > --- WEAPON ----------- AWS/Gauss > --- INVENTORY -------- Aluminum Leg Medium Matter Pod XL Autogun Array Light Cannon Mining Laser [Rating: 29] Favorites ----------- Power Ion Engine Engine Ion Engine Power Core Light Nuclear Core Propulsion Aluminum Leg Leg Aluminum Leg Utility Small Storage Unit Device Sensor Array Storage Small Storage Unit Weapon Assault Rifle Energy Gun EM Pulse Gun Ballistic Gun Assault Rifle Ballistic Cannon Light Cannon Build | -11 -10 -10 -10 ------- Run | Scr Mat Min Exi Slots Evolved . | . . . . Power . | . . . . Propulsion . | . . . . Utility . | . . . . Weapon . | . . . . Parts Attached 22 | 7 2 2 11 Power 4 | 1 . 1 2 Engine 3 | 1 . 1 1 Core 1 | . . . 1 Reactor . | . . . . Propulsion 9 | 2 1 . 6 Treads . | . . . . Leg 9 | 2 1 . 6 Wheel . | . . . . Hover . | . . . . Flight . | . . . . Utility 3 | 1 1 . 1 Device 1 | . 1 . . Storage 2 | 1 . . 1 Processor . | . . . . Hackware . | . . . . Protection . | . . . . Artifact . | . . . . Weapon 6 | 3 . 1 2 Energy Gun 1 | 1 . . . Energy Cannon . | . . . . Ballistic Gun 3 | 2 . . 1 Ballistic Cannon 2 | . . 1 1 Launcher . | . . . . Special Weapon . | . . . . Impact Weapon . | . . . . Slashing Weapon . | . . . . Piercing Weapon . | . . . . Special Melee Weapon . | . . . . Unidentified Prototypes 1 | . . . 1 Parts Lost 6 | . . 2 4 Power 1 | . . . 1 Propulsion 4 | . . 1 3 Utility . | . . . . Weapon 1 | . . 1 . Highest Loss Streak 2 | . . 2 2 To Critical Strikes . | . . . . Average Slot Usage (%) 86 | . 88 89 83 Engine 12 | . 14 14 11 Leg 23 | . 28 17 21 Device 9 | . 3 14 14 Storage 14 | . 14 14 14 Energy Gun 5 | . 14 2 . Ballistic Gun 13 | . 14 14 13 Ballistic Cannon 4 | . . 11 6 Naked Turns . | . . . . Heaviest Build 56 | 14 15 16 56 Greatest Support 30 | 20 20 20 30 Greatest Overweight (x) 2 | . . 1 2 Average Overweight (x) . | . . . . Largest Inventory Capacity 20 | 8 8 8 20 Average Capacity 9 | 7 8 8 10 Most Carried 9 | 2 7 8 9 Average Carried 5 | . 3 7 7 Final Capacity 20 | 8 8 8 20 Final Carried 8 | 2 7 8 8 Class Distribution -------------------- 100% | Mutant Dominant Class ---------------- Mutant | -10/Materials Mutant | -10/Mines Mutant | -10/Exiles Resources | -11 -10 -10 -10 ----------- Run | Scr Mat Min Exi Matter Collected 621 | 153 102 176 190 Remotely . | . . . . Salvage Created 1345 | . 173 82 1090 Parts 75 | . 14 4 57 Haulers Intercepted . | . . . . Recyclers Shooed . | . . . . Parts Field Recycled . | . . . . Retrieved Matter . | . . . . Parts Self-Destructed . | . . . . Prevented . | . . . . Kills | -11 -10 -10 -10 ------- Run | Scr Mat Min Exi Combat Hostiles Destroyed 33 | . 6 2 25 Guns 30 | . 6 1 23 Cannons 2 | . . 1 1 Classes Destroyed 6 | . 2 . 4 Swarmer 3 | . 3 . . Grunt 15 | . 3 2 10 Brawler 2 | . . . 2 Duelist 1 | . . . 1 Hunter 6 | . . . 6 Programmer 6 | . . . 6 Best Kill Streak 23 | . 6 2 23 Combat Bots Only 23 | . 6 2 23 Max Kills in Single Turn 1 | . 1 1 1 Gunslinging . | . . . . Exploded . | . . . . Melee . | . . . . Uniques/NPCs Destroyed . | . . . . Combat | -11 -10 -10 -10 -------- Run | Scr Mat Min Exi Damage Taken 1212 | . 196 244 772 Core 255 | . 46 68 141 Absorbed by Shields . | . . . . Core Remaining (%) 100 | 100 . . . Volleys Fired 32 | . 18 12 2 Largest 2 | . 2 2 1 Hottest 60 | . 60 60 35 Shots Fired 123 | . 36 22 65 Gun 114 | . 36 15 63 Cannon 9 | . . 7 2 Launcher . | . . . . Special . | . . . . Kinetic 102 | . 18 19 65 Thermal . | . . . . Explosive . | . . . . Electromagnetic 21 | . 18 3 . Robot Hit Streak 22 | . 6 8 22 Robot Miss Streak 4 | . 4 1 1 Penetration Max . | . . . . Secondary Targets . | . . . . Autonomous 63 | . . . 63 Shots Hit Robots 89 | . 18 18 53 Core Hits 42 | . 7 5 30 Critical Kills 1 | . . . 1 Critical Parts Destroyed . | . . . . Critical Strikes 2 | . . 1 1 Destroy 1 | . . . 1 Blast 1 | . . 1 . Melee Attacks . | . . . . Impact . | . . . . Slashing . | . . . . Piercing . | . . . . Sneak Attacks . | . . . . Combat Hostiles . | . . . . Follow-up Attacks . | . . . . Damage Inflicted 1984 | . 227 259 1498 Guns 1850 | . 227 170 1453 Cannons 134 | . . 89 45 Explosions . | . . . . Melee . | . . . . Ramming . | . . . . Kinetic 1818 | . 101 219 1498 Thermal . | . . . . Explosive . | . . . . Electromagnetic 166 | . 126 40 . Impact . | . . . . Slashing . | . . . . Piercing . | . . . . Highest Corruption 2 | . . . 2 Average Corruption 1 | . . . 1 Corruption Purged . | . . . . Corruption Blocked . | . . . . Effects 1 | . . . 1 Parts Rejected 1 | . . . 1 Overload Shots . | . . . . Overflow Damage . | . . . . Projectiles . | . . . . Explosions . | . . . . Melee . | . . . . Knockbacks 1 | . . 1 . Impact . | . . . . Kinetic 1 | . . 1 . Secondary . | . . . . Self-Inflicted Damage . | . . . . Shots . | . . . . Rammed . | . . . . Targets Rammed . | . . . . Kicked . | . . . . Crushed . | . . . . Highest Temperature 69 | . 54 69 . Average Temperature 37 | . 30 44 . Received Heat Transfer 237 | . 54 153 30 Siege Activations . | . . . . Robots Corrupted . | . . . . Combat Hostiles . | . . . . Parts Fried . | . . . . Impact Corruptions . | . . . . Robots Melted . | . . . . Combat Hostiles . | . . . . Parts Melted . | . . . . Heat Transferred . | . . . . Parts Sabotaged . | . . . . Parts Stolen . | . . . . Parts Stripped . | . . . . Power Chain Reactions . | . . . . Missiles Intercepted . | . . . . Alert | -11 -10 -10 -10 ------- Run | Scr Mat Min Exi Peak Influence 170 | . 170 40 . Initial . | . . . . Average 24 | . 26 30 . Maximum Alert Level . | . . . . Low Security (%) 100 | 100 100 100 . Level 1 . | . . . . Level 2 . | . . . . Level 3 . | . . . . Level 4 . | . . . . Level 5 . | . . . . High Security . | . . . . Max Security . | . . . . Squads Dispatched 1 | . 1 . . Investigation 1 | . 1 . . Extermination . | . . . . Reinforcement . | . . . . Assault . | . . . . Garrison . | . . . . Intercept . | . . . . Searches Triggered . | . . . . Construction Impeded . | . . . . Haulers Reinforced . | . . . . Active Scanning Responses . | . . . . Cargo Convoy Interrupts . | . . . . Stealth | -11 -10 -10 -10 --------- Run | Scr Mat Min Exi Distress Signals . | . . . . Communications Jammed . | . . . . Distress Signals . | . . . . Times Spotted 34 | . 7 2 25 Peak Tracking Total 10 | . 3 2 10 Tactical Retreats . | . . . . Traps | -11 -10 -10 -10 ------- Run | Scr Mat Min Exi Traps Triggered 1 | . 1 . . Indirectly . | . . . . Trap Hack Attempts . | . . . . Triggered . | . . . . Disarmed . | . . . . Reprogrammed . | . . . . Reused . | . . . . Traps Extracted . | . . . . Installed . | . . . . Triggered . | . . . . Exploded 2 | . . . 2 Machines | -11 -10 -10 -10 ---------- Run | Scr Mat Min Exi Machines Disabled 4 | . 1 . 3 Max in Single Turn 1 | . 1 . 1 Machines Sabotaged . | . . . . Garrisons Compromised . | . . . . Overloaded Fab Kills . | . . . . Hacking | -11 -10 -10 -10 --------- Run | Scr Mat Min Exi Machines Accessed 7 | . 3 . 4 Terminals 3 | . 3 . . Fabricators . | . . . . Repair Stations . | . . . . Recycling Units . | . . . . Scanalyzers . | . . . . Garrison Access . | . . . . Total Hacks 53 | . 4 . 49 Successful 52 | . 3 . 49 Failed 1 | . 1 . . Catastrophic 1 | . 1 . . Database Lockouts . | . . . . Manual 5 | . 4 . 1 Terminals 4 | . 4 . . Fabricators . | . . . . Repair Stations . | . . . . Recycling Units . | . . . . Scanalyzers . | . . . . Garrison Access . | . . . . Terminal Hacks 51 | . 2 . 49 Record 49 | . . . 49 Branch Access Points 1 | . 1 . . Unreport Threat 1 | . 1 . . Fabricator Hacks . | . . . . Repair Station Hacks . | . . . . Recycling Unit Hacks . | . . . . Scanalyzer . | . . . . Garrison Access Hacks . | . . . . Unauthorized Hacks 1 | . 1 . . Terminals 1 | . 1 . . Botnet 1 | . 1 . . Fabricators . | . . . . Repair Stations . | . . . . Recycling Units . | . . . . Scanalyzers . | . . . . Garrison Access . | . . . . Data Cores Recovered . | . . . . Used . | . . . . Hacking Detections 1 | . 1 . . Full Trace Events . | . . . . Feedback Events . | . . . . Feedback Blocked . | . . . . Robot Schematics Acquired . | . . . . Robots Built . | . . . . Authchips . | . . . . Time . | . . . . Total Robot Build Rating . | . . . . Part Schematics Acquired . | . . . . Parts Built . | . . . . Authchips . | . . . . Time . | . . . . Total Part Build Rating . | . . . . Parts Repaired . | . . . . Time . | . . . . Parts Recycled . | . . . . Recycled Matter . | . . . . Retrieved Matter . | . . . . Retrieved Components . | . . . . Parts Scanalyzed . | . . . . Part Schematics Acquired . | . . . . Parts Damaged . | . . . . Bothacking | -11 -10 -10 -10 ------------ Run | Scr Mat Min Exi Used RIF Installer . | . . . . Robots Hacked . | . . . . Non-combat . | . . . . Combat . | . . . . Robot Hacks Applied . | . . . . Relay Couplers Released . | . . . . Fabnet Peak Effective % . | . . . . Robots Rewired . | . . . . Allies Hacked . | . . . . Hacks Repelled . | . . . . Allies | -11 -10 -10 -10 -------- Run | Scr Mat Min Exi Total Allies . | . . . . Largest Group . | . . . . Highest-Rated Group . | . . . . Highest-Rated Ally . | . . . . Total Orders . | . . . . Ally Attacks . | . . . . Total Damage . | . . . . Kills . | . . . . Allies Corrupted . | . . . . Allies Melted . | . . . . Intel | -11 -10 -10 -10 ------- Run | Scr Mat Min Exi Robot Analysis Total . | . . . . Derelict Logs Recovered . | . . . . Drone Launches . | . . . . Drone Recoveries . | . . . . Exploration | -11 -10 -10 -10 ------------- Run | Scr Mat Min Exi Turns Passed 1329 | 69 507 148 605 Spaces Moved 636 | 51 191 61 333 Core 7 | 7 . . . Treads . | . . . . Legs 629 | 44 191 61 333 Wheels . | . . . . Hover . | . . . . Flight . | . . . . Fastest Speed 50 | 50 120 120 120 Average Speed 147 | 110 120 178 163 Slowest Speed 260 | 120 120 190 260 Overloaded Moves . | . . . . Propulsion Burnouts . | . . . . Robots Hopped 3 | . . . 3 Cave-ins Triggered . | . . . . Exploration Rate (%) 29 | 4 30 14 69 Regions Visited 3 Branch Regions 2 Pre-discovered Areas 1 | . . . 1 Known Exits Taken 1 | . 1 . . Unknown Exits Taken 2 | 1 . 1 . Scrap Searched . | . . . . Spaces Dug . | . . . . Terrain Destroyed 24 | . . . 24 Melee . | . . . . Projectile 24 | . . . 24 AOE . | . . . . Terrain Rammed . | . . . . Walls Destroyed . | . . . . Machines Disabled . | . . . . Actions | -11 -10 -10 -10 --------- Run | Scr Mat Min Exi Total 962 | 60 432 78 392 Wait 256 | . 218 3 35 Move 627 | 50 190 60 327 Hop 3 | . . . 3 Pick Up 11 | 2 4 1 4 Fast Attach 11 | 7 1 . 3 Attach 5 | . . 1 4 Detach . | . . . . Swap 6 | . 1 1 4 Drop 11 | 1 . . 10 Fire 32 | . 18 12 2 Melee . | . . . . Ram . | . . . . Kick . | . . . . Crush . | . . . . Escape Stasis . | . . . . Rewire . | . . . . Trap . | . . . . Miscellaneous . | . . . . Route ------- -11/Scrapyard -10/Materials (discovered 2 exits: *Min x2) -10/Mines -10/Exiles History --------- Turn | Location | Event 3 | -11/Scrapyard | Discovered new exit (range 15) 70 | -11/Scrapyard | Entered Materials 94 | -10/Materials | Identified exit to Mines 318 | -10/Materials | Build established: Mutant 577 | -10/Materials | Entered Mines 717 | -10/Mines | Deemed a non-threat by the Exiles lab entrance 717 | -10/Mines | Discovered new exit (range 5) 725 | -10/Mines | Entered Exiles 771 | -10/Exiles | Met 8R-AWN 803 | -10/Exiles | Met EX-HEX 868 | -10/Exiles | Met EX-BIN 893 | -10/Exiles | Aligned with FarCom system 895 | -10/Exiles | Given EX-Vault access code 980 | -10/Exiles | Opened EX-Vault 998 | -10/Exiles | Found Prototype Ballistic Gun 998 | -10/Exiles | Identified AWS/Gauss 1014 | -10/Exiles | Found Prototype Flight Unit 1020 | -10/Exiles | Found Prototype Ballistic Gun 1047 | -10/Exiles | Exiles lab attacked by MAIN.C 1084 | -10/Exiles | Learned location of Zion (-6) 1187 | -10/Exiles | Core integrity fell below 50% 1219 | -10/Exiles | Core integrity fell below 20% 1279 | -10/Exiles | Destroyed 23 combat bots 1330 | -10/Exiles | Destroyed by H-55 Commando with Assault Rifle Last Messages --------------- 01251_ Slug penetrates Earth. 01251_ The unstable cave ceiling collapses. 01251_ G-34 Mercenary crushed by falling debris. 01251_ G-34 Mercenary destroyed. 01251_ 1 Matter crushed. 01252_ Acquired 45 matter. 01254_ Slug penetrates B-36 Bruiser. 01258_ B-36 Bruiser destroyed. 01266_ Dropped Ion Engine. 01267_ Acquired Lgt. Nuclear Core. 01268_ Acquired 57 matter. 01276_ Acquired 25 matter. 01281_ Acquired Targeting Computer. 01309_ System corrupted: AWS/Gauss rejected. 01312_ Aluminum Leg destroyed. 01313_ P-60 Hacker destroyed. 01320_ Acquired 23 matter. 01327_ Acquired Aluminum Leg. 01330_ Penetrated by Slug. 01330_ Carbon-fiber Leg destroyed. Map ----- +----------------------------------------------------+ | ??????" #????????# """##???????????? | | ?????"" #????????#" "X" """""???????????? | | ?????"" "#????????#" """ #????????????? | | ????? ""?????????#" """""""""#????????????? | | ??????" "?????????##" ###########????????????? | | ??????# #????????##"" #??????????????????????? | | ????### ###?######"" #??????????????????????? | | #####X# #"###""""""" ##?????????????????????? | | """""" " "" ##???###########??????? | | "" """ " #####"""""""""##?????? | | " " " """ """"##????? | | "" " #????? | | " """#????? | | " "#????? | | " "##???? | | ""###?? | | "" """""" """#?? | | ######""" "#?? | | ""##????###""""" ##? | | " """##?????### "#""" ## | | """##????### ## """ * # | | ""#?????# # #;" h %!% | | ######## #;;## = = | | ##aaa#;#== "![% *%= | | * [%[ %|%= [ [ | | [ =%[%@%%!= | | "" *== =%=*!*% # | | *%!![!==%= " ## | | /*%![[% " """ ""#? | | """ "=##| %%""" " " ""#" "##? | | " ""#### *#####""" """##"""" "##?? | | """"##??#=%%#???###""""###########??? | | "" """#??##[ !###????#####????????????? | | ""##??#! !"!#?????????????????????? | | "" """##???#" !#?????????????????????? | | #""" ##????# "#?????????????????????? | | ##"""" ##?????#!! !"#?????????????????????? | | ?### #??????########?????????????????????? | | ???##### ##???????????????????????????????????? | | ???????## #????????????????????????????????????? | | ????????# #????????????????????????????????????? | | ????????# #????????????????????????????????????? | | ????????# #????????????????????????????????????? | | ????????# #????????????????????????????????????? | | ????????# #????????????????????????????????????? | | ????????# #????????????????????????????????????? | | ????????# #????????????????????????????????????? | | ????????# #????????????????????????????????????? | | ????????# #????????????????????????????????????? | | """###### ########?????????????????????????????? | +----------------------------------------------------+ Best States ------------- Heat Dissipation 25 Energy Generation 14 Energy Capacity 250 Matter Stores 300 Matter Capacity 300 Sight Range 16 Robot Scan Range 14 Terrain Scan Density 10 Evasion (%) 55 Item Schematics ----------------- None Robot Schematics ------------------ None Fabricated ------------ Nothing Alien Tech Used ----------------- None Achievements -------------- Killing Spree Challenges ------------ None Game ------ Seed DispersionDecoderNanosword Manual? 0 Play Time 00:11:39 Cumulative 12.9 hours Start 2022.03.18 @ 17:52:05 End 2022.03.18 @ 18:01:41 Sessions 1 Manual Loads 0 Difficulty Rogue Special Mode None Game No. 15 Rogue 7 Adventurer 8 Explorer 0 Win Type - Total 1 Types 1/0/0/0/0/0/0/0/0 Lore% 38 Gallery% 32 Achievement% 35 Wizard Run 0 Options --------- ASCII 0 Keyboard 0 Movement Mouse Keybinds 0 Fullscreen 1 Font 18/Terminus Map View 76x50 Tactical HUD 1 Map Filters NONE Filters NONE Steam 1 RUN: 40161e87-f60d-45fb-b67b-3ea304f1d9f0